Cogmind - Beta 13 @@@ ROGUE MODE // 2024.04.02 @ 19:22:07 Player: Kit Redgrave Result: Destroyed by D-53 Grenadier with Mini Grenade Launcher Performance ------------- Evolutions (0) 0 Regions Visited (2) 400 Robots Destroyed (16) 80 Value Destroyed (246) 246 Prototype IDs (0) 0 Alien Tech Used (0) 0 Bonus (0) 0 TOTAL SCORE: 726 Bonus ------- None Cogmind --------- Core Integrity 0/250 Matter 254/300 Energy 100/100 System Corruption 0% Temperature Cool (0) Movement Core (350) Ox6 Location -10/Mines Parts ------- > --- POWER (1) -------- (None) > --- PROPULSION (2) --- (None) > --- UTILITY (2) ------ Large Storage Unit > --- WEAPON (2) ------- (None) > --- INVENTORY (15) --- Light Ion Engine Flight Unit Flight Unit Flight Unit Flight Unit Flight Unit Flight Unit Light Assault Rifle Peak State ------------ > --- POWER ------------ Ion Engine > --- PROPULSION ------- Aluminum Leg Aluminum Leg > --- UTILITY ---------- Small Storage Unit Hacking Suite > --- WEAPON ----------- EM Pulse Gun Small Laser > --- INVENTORY -------- Light Ion Engine Hover Unit Flight Unit Flight Unit Flight Unit Light Assault Rifle Datajack [Rating: 9] Favorites ----------- Power Ion Engine Engine Ion Engine Propulsion Aluminum Leg Leg Aluminum Leg Flight Unit Flight Unit Utility Large Storage Unit Storage Large Storage Unit Hackware Hacking Suite Weapon EM Pulse Gun Energy Gun EM Pulse Gun Ballistic Gun Light Assault Rifle Launcher Grenade Launcher Special Melee Weapon Datajack Build | -11 -10 -10 ------- Run | Yrd Mat Min Slots Evolved . | . . . Power . | . . . Propulsion . | . . . Utility . | . . . Weapon . | . . . Parts Attached 25 | 3 21 1 Power 3 | . 3 . Engine 3 | . 3 . Core . | . . . Reactor . | . . . Propulsion 6 | 2 4 . Treads . | . . . Leg 4 | 2 2 . Wheel . | . . . Hover . | . . . Flight 2 | . 2 . Utility 5 | 1 4 . Device . | . . . Storage 4 | 1 3 . Processor . | . . . Hackware 1 | . 1 . Protection . | . . . Artifact . | . . . Weapon 11 | . 10 1 Energy Gun 7 | . 7 . Energy Cannon . | . . . Ballistic Gun 2 | . 2 . Ballistic Cannon . | . . . Launcher 1 | . . 1 Special Weapon . | . . . Impact Weapon . | . . . Slashing Weapon . | . . . Piercing Weapon . | . . . Special Melee Weapon 1 | . 1 . Unidentified Prototypes . | . . . Parts Lost 8 | . 5 3 Power 1 | . . 1 Propulsion 2 | . 1 1 Utility 1 | . 1 . Weapon 4 | . 3 1 Highest Loss Streak 4 | . 4 3 To Critical Strikes . | . . . Average Slot Usage (%) 73 | . 77 54 Engine 13 | . 14 13 Leg 19 | . 20 13 Flight 1 | . 2 . Storage 14 | . 14 14 Hackware 4 | . 5 . Energy Gun 11 | . 14 . Ballistic Gun 4 | . 6 . Launcher 2 | . . 13 Naked Turns . | . . . Heaviest Build 28 | 5 28 28 Greatest Support 20 | 20 20 10 Greatest Overweight (x) 6 | 1 2 6 Average Overweight (x) . | . . 2 Largest Inventory Capacity 15 | 8 15 15 Average Capacity 11 | 7 11 15 Most Carried 9 | 5 9 8 Average Carried 5 | 3 5 7 Final Capacity 15 | 8 15 15 Final Carried 8 | 5 6 8 Class Distribution -------------------- 100% | Mutant Dominant Class ---------------- Mutant | -10/Materials Mutant | -10/Mines Resources | -11 -10 -10 ----------- Run | Yrd Mat Min Matter Collected 400 | 230 153 17 Remotely . | . . . Salvage Created 424 | . 397 27 Parts 35 | . 28 7 Haulers Intercepted . | . . . Recyclers Shooed 1 | . 1 . Parts Field Recycled . | . . . Retrieved Matter . | . . . Parts Self-Destructed . | . . . Prevented . | . . . Kills | -11 -10 -10 ------- Run | Yrd Mat Min Combat Hostiles Destroyed 12 | . 9 3 Guns 9 | . 9 . AOE 3 | . . 3 Classes Destroyed 5 | . 5 . Recycler 2 | . 2 . Operator 1 | . 1 . Watcher 1 | . 1 . Swarmer 9 | . 6 3 Grunt 3 | . 3 . Best Kill Streak 5 | . 5 3 Combat Bots Only 3 | . 3 3 Max Kills in Single Turn 3 | . 1 3 Gunslinging . | . . . Exploded 3 | . . 3 Melee . | . . . Uniques/NPCs Destroyed . | . . . Combat | -11 -10 -10 -------- Run | Yrd Mat Min Hostile Shots Fired 71 | . 59 12 Missed 12 | . 11 1 Damage Taken 792 | . 483 309 Core 256 | . 74 182 Absorbed by Shields . | . . . Core Remaining (%) 100 | 100 . . Volleys Fired 52 | . 51 1 Largest 2 | . 2 1 Hottest 80 | . 80 30 Shots Fired 75 | . 74 1 Gun 74 | . 74 . Cannon . | . . . Launcher 1 | . . 1 Special . | . . . Kinetic 26 | . 26 . Thermal 17 | . 17 . Explosive 1 | . . 1 Electromagnetic 31 | . 31 . Robot Hit Streak 7 | . 7 1 Robot Miss Streak 5 | . 5 . Penetration Max . | . . . Secondary Targets . | . . . Shots Hit Robots 43 | . 42 1 Core Hits 20 | . 17 3 Critical Kills . | . . . Critical Parts Destroyed . | . . . Critical Strikes . | . . . Melee Attacks 1 | . 1 . Impact . | . . . Slashing . | . . . Piercing . | . . . Sneak Attacks 1 | . 1 . Combat Hostiles . | . . . Follow-up Attacks . | . . . Damage Inflicted 666 | . 532 134 Guns 467 | . 467 . Cannons . | . . . Explosions 199 | . 65 134 Melee . | . . . Ramming . | . . . Kinetic 112 | . 112 . Thermal 143 | . 143 . Explosive 134 | . . 134 Electromagnetic 277 | . 277 . Impact . | . . . Slashing . | . . . Piercing . | . . . Highest Corruption . | . . . Average Corruption . | . . . Corruption Purged . | . . . Corruption Blocked . | . . . Overload Shots . | . . . Overflow Damage 8 | . 7 1 Projectiles . | . . . Explosions 8 | . 7 1 Melee . | . . . Knockbacks . | . . . Impact . | . . . Kinetic . | . . . Secondary . | . . . Self-Inflicted Damage 65 | . 37 28 Shots 2 | . 1 1 Rammed . | . . . Targets Rammed . | . . . Kicked . | . . . Crushed . | . . . Highest Temperature 90 | . 90 . Average Temperature 35 | . 35 . Received Heat Transfer 120 | . 120 . Siege Activations . | . . . Robots Corrupted . | . . . Combat Hostiles . | . . . Parts Fried 1 | . 1 . Impact Corruptions . | . . . Robots Melted . | . . . Combat Hostiles . | . . . Parts Melted . | . . . Heat Transferred 275 | . 275 . Parts Sabotaged . | . . . Parts Stolen . | . . . Parts Stripped . | . . . Power Chain Reactions 1 | . 1 . Alert | -11 -10 -10 ------- Run | Yrd Mat Min Peak Influence 237 | . 237 107 Initial 30 | . . 30 Average 105 | . 114 105 Maximum Alert Level 1 | . 1 . Low Security (%) 86 | 100 82 100 Level 1 13 | . 17 . Level 2 . | . . . Level 3 . | . . . Level 4 . | . . . Level 5 . | . . . High Security . | . . . Max Security . | . . . Squads Dispatched 1 | . 1 . Investigation 1 | . 1 . Extermination . | . . . Reinforcement . | . . . Assault . | . . . Garrison . | . . . Intercept . | . . . Searches Triggered . | . . . Construction Impeded . | . . . Haulers Reinforced . | . . . Active Scanning Responses . | . . . Cargo Convoy Interrupts . | . . . Stealth | -11 -10 -10 --------- Run | Yrd Mat Min Distress Signals 3 | . 3 . Communications Jammed . | . . . Distress Signals . | . . . Times Spotted 24 | . 17 7 Peak Tracking Total 4 | . 4 4 Tactical Retreats 1 | . 1 . Traps | -11 -10 -10 ------- Run | Yrd Mat Min Traps Triggered 1 | . 1 . Indirectly . | . . . Trap Hack Attempts . | . . . Triggered . | . . . Disarmed . | . . . Reprogrammed . | . . . Reused . | . . . Traps Extracted . | . . . Installed . | . . . Triggered . | . . . Machines | -11 -10 -10 ---------- Run | Yrd Mat Min Machines Disabled 1 | . 1 . Max in Single Turn 1 | . 1 . Machines Repaired . | . . . Machines Dismantled . | . . . Machines Sabotaged . | . . . Overloaded Fab Kills . | . . . Hacking | -11 -10 -10 --------- Run | Yrd Mat Min Machines Accessed 3 | . 3 . Terminals 3 | . 3 . Fabricators . | . . . Repair Stations . | . . . Recycling Units . | . . . Scanalyzers . | . . . Garrison Access . | . . . Total Hacks 10 | . 10 . Successful 4 | . 4 . Failed 6 | . 6 . Catastrophic 2 | . 2 . Database Lockouts . | . . . Manual 7 | . 7 . Terminals 10 | . 10 . Fabricators . | . . . Repair Stations . | . . . Recycling Units . | . . . Scanalyzers . | . . . Garrison Access . | . . . Terminal Hacks 4 | . 4 . Part Schematic 2 | . 2 . Alert Level 1 | . 1 . Dispatch Records 1 | . 1 . Fabricator Hacks . | . . . Repair Station Hacks . | . . . Recycling Unit Hacks . | . . . Scanalyzer . | . . . Garrison Access Hacks . | . . . Unauthorized Hacks . | . . . Terminals . | . . . Fabricators . | . . . Repair Stations . | . . . Recycling Units . | . . . Scanalyzers . | . . . Garrison Access . | . . . Data Cores Recovered 1 | . 1 . Used 1 | . 1 . Hacking Detections 2 | . 2 . Full Trace Events 2 | . 2 . Feedback Events . | . . . Feedback Blocked . | . . . Robot Schematics Acquired . | . . . Robots Built . | . . . Authchips . | . . . Time . | . . . Total Robot Build Rating . | . . . Part Schematics Acquired 2 | . 2 . Parts Built . | . . . Authchips . | . . . Time . | . . . Total Part Build Rating . | . . . Parts Repaired . | . . . Time . | . . . Parts Recycled . | . . . Recycled Matter . | . . . Retrieved Matter . | . . . Retrieved Components . | . . . Parts Scanalyzed . | . . . Part Schematics Acquired . | . . . Parts Damaged . | . . . Bothacking | -11 -10 -10 ------------ Run | Yrd Mat Min Used RIF Installer . | . . . Robots Hacked . | . . . Non-combat . | . . . Combat . | . . . Robot Hacks Applied . | . . . Relay Couplers Released . | . . . Fabnet Peak Effective % . | . . . Robots Rewired . | . . . Allies Hacked . | . . . Hacks Repelled . | . . . Allies | -11 -10 -10 -------- Run | Yrd Mat Min Total Allies . | . . . Largest Group . | . . . Highest-Rated Group . | . . . Highest-Rated Ally . | . . . Total Orders . | . . . Ally Attacks . | . . . Total Damage . | . . . Kills . | . . . Allies Corrupted . | . . . Allies Melted . | . . . Intel | -11 -10 -10 ------- Run | Yrd Mat Min Robot Analysis Total . | . . . Derelict Logs Recovered . | . . . Drone Launches . | . . . Drone Recoveries . | . . . Exploration | -11 -10 -10 ------------- Run | Yrd Mat Min Turns Passed 911 | 61 705 145 Spaces Moved 392 | 46 292 54 Core 16 | 15 . 1 Treads . | . . . Legs 340 | 31 256 53 Wheels . | . . . Hover . | . . . Flight 36 | . 36 . Fastest Speed 50 | 50 117 260 Average Speed 174 | 111 168 261 Slowest Speed 350 | 120 260 350 Overloaded Moves . | . . . Propulsion Burnouts . | . . . Robots Hopped . | . . . Cave-ins Triggered . | . . . Exploration Rate (%) 27 | 3 51 27 Regions Visited 2 Branch Regions 1 Pre-discovered Areas . | . . . Known Exits Taken . | . . . Unknown Exits Taken 2 | 1 1 . Scrap Searched . | . . . Spaces Dug . | . . . Terrain Destroyed 12 | . 5 7 Melee . | . . . Projectile . | . . . AOE 12 | . 5 7 Terrain Rammed . | . . . Walls Destroyed . | . . . Machines Disabled . | . . . Actions | -11 -10 -10 --------- Run | Yrd Mat Min Total 545 | 56 431 58 Wait 53 | . 53 . Move 390 | 45 291 54 Hop . | . . . Pick Up 20 | 8 10 2 Fast Attach . | . . . Attach 9 | 3 6 . Detach . | . . . Swap 16 | . 15 1 Drop 4 | . 4 . Fire 52 | . 51 1 Melee 1 | . 1 . Ram . | . . . Kick . | . . . Crush . | . . . Escape Stasis . | . . . Rewire . | . . . Trap . | . . . Miscellaneous . | . . . Route ------- -11/Scrapyard -10/Materials (discovered 2 exits: [*Mat] / [*Min]) -10/Mines History --------- Turn | Location | Event 2 | -11/Scrapyard | Met Revision 17 16 | -11/Scrapyard | Discovered new exit (range 15) 62 | -11/Scrapyard | Entered Materials 245 | -10/Materials | Discovered new exit (range 8) 288 | -10/Materials | Discovered new exit (range 10) 336 | -10/Materials | Build established: Mutant 525 | -10/Materials | Lost 4 parts (1n1u2w) 767 | -10/Materials | Entered Mines 873 | -10/Mines | Assembled infested the area 905 | -10/Mines | Core integrity fell below 50% 910 | -10/Mines | Core integrity fell below 20% 912 | -10/Mines | Destroyed by D-53 Grenadier with Mini Grenade Launcher Last Messages --------------- 00532_ U-05 Engineer builds a Wall. 00536_ U-05 Engineer builds a Door. 00540_ U-05 Engineer builds a Wall. LOCATION=UNKNOWN GOAL=ESCAPE 00769_ S-10 Pest destroyed. 00769_ Destroyed Flight Unit. 00769_ S-10 Pest destroyed. 00774_ Acquired Flight Unit. 00777_ Acquired 17 matter. 00782_ Acquired Flight Unit. 00826_ K-01 Serf collects debris. 00873_ ALERT: Infestation in the mines, dispatching Demolisher response squad. 00901_ C-30 ARC bursts open, deploying its payload. 00901_ D-53 Grenadier unfolds itself. 00906_ Ion Engine destroyed. 00908_ Aluminum Leg destroyed. 00909_ Grenade Launcher destroyed. 00910_ The unstable cave ceiling collapses. [Achievement: First Step to Greatness] Map ----- +----------------------------------------------------+ | ?????????????????????????????????????????????????? | | ?????????????????????????????????????????????????? | | ?????????????????????????????????????????????????? | | ?????????????????????????????????????????????????? | | ?????????????????????????????????????????????????? | | ?????????????????????????????????????????????????? | | ?????????????????????????????????????????????????? | | ?????????????????????????????????????????????????? | | ?????????????????????????????????????????????????? | | ?????????????????????????????????????????????????? | | ?????????????????????????????????????????????????? | | ?????????????????????????????????????????????????? | | ?????????????#######?????????????????????????????? | | ?? ???????# ##????????????????????????????? | | ?? #??????# ##???????????????????????????? | | ??# #??????" #???????????????????????????? | | ??# #??????" #???????????????????????????? | | ??# ##?????#X #????????????????????????????? | | ### ##???## #??????????????????????????????? | | # #???# #########???????????????????????? | | ##?## ## ###?????????????????????? | | ### ## ##????????????????????? | | "%" d ##???????????????????? | | " d #???????????????????? | | ## #???????????????????? | | ### @ #????????????????????? | | #?# a ?????????????? | | #?# a#????????????? | | #?# #### #????????????? | | ### #?## # ###????? #????????????? | | #?### #??## ##????????? ????????????? | | #???## ### #???# ????????????????????????? | | #????## ##?# #?? ????????????????????????? | | #?????# ##??## ????????????????????????? | | #?????# #????## ????????????????????????? | | #?????# #?????? ????????????????????????? | | ####### #??????# ????????????????????????? | | #???????# ????????????????????????? | | #########???????? ????????????????????????? | | #??????????????????? ##????????????????????????? | | #?????????????????????#??????????????????????????? | | #????????????????????????????????????????????????? | | #????????????????????????????????????????????????? | | #????????????????????????????????????????????????? | | #????????????????????????????????????????????????? | | #????????????????????????????????????????????????? | | #????????????????????????????????????????????????? | | ?????????????????????????????????????????????????? | | ?????????????????????????????????????????????????? | | ?????????????????????????????????????????????????? | +----------------------------------------------------+ Best States ------------- Heat Dissipation 25 Energy Generation 10 Energy Capacity 250 Matter Stores 300 Matter Capacity 300 Sight Range 16 Terrain Scan Density 10 Evasion (%) 55 Offensive Hacking 10 Item Schematics ----------------- Flight Unit | -10/Materials | Hacked Hover Unit | -10/Materials | Hacked Robot Schematics ------------------ None Fabricated ------------ Nothing Alien Tech Used ----------------- None Achievements -------------- Dynamic Key First Step to Greatness Challenges ------------ None Game ------ Seed LongswordWaveInsulator Manual? 0 Play Time 00:17:54 Cumulative 1.9 hours Start 2024.04.02 @ 18:39:12 End 2024.04.02 @ 19:22:07 Sessions 1 Manual Loads 0 Difficulty Rogue Special Mode None Game No. 6 Rogue 6 Adventurer 0 Explorer 0 Win Type - Total 0 Types 0/0/0/0/0/0/0/0/0 Lore% 10 Gallery% 8 Achievement% 9 Wizard Run 0 Options --------- Layout 0 ASCII 0 Keyboard 0 Movement Mouse Keybinds 0 Fullscreen 1 Font 24/Terminus Map View 113x50 Zoom Use 0% Tactical HUD 1 Map Filters NONE Filters NONE Steam 1 RUN: 15113a82-9559-451f-b90a-312e1f44d496